Cogmind - Beta 11.1 @@@ ROGUE MODE // 2022.05.03 @ 21:30:59 Player: Okkudo Result: Destroyed by C-17 Slicer with Blade Saw Performance ------------- Evolutions (2) 1000 Regions Visited (3) 600 Robots Destroyed (26) 130 Value Destroyed (710) 710 Prototype IDs (1) 20 Alien Tech Used (0) 0 Bonus (35) 35 TOTAL SCORE: 2495 Bonus ------- High Alert Combat Kills 35 Cogmind --------- Core Integrity 0/550 Matter 31/300 Energy 99/100 System Corruption 0% Temperature Cool (0) Movement Core (200) Ox3 Location -8/Materials Parts ------- > --- POWER (1) -------- (None) > --- PROPULSION (4) --- (None) > --- UTILITY (4) ------ Medium Storage Unit Signal Interpreter Improved Terrain Scan Processor > --- WEAPON (2) ------- Spear > --- INVENTORY (10) --- Improved VTOL Module Improved VTOL Module Faulty Improved VTOL Module Improved VTOL Module Improved VTOL Module Shock Bomb Launcher Improved Grenade Launcher Peak State ------------ > --- POWER ------------ Heavy Ion Engine > --- PROPULSION ------- Aluminum Leg Aluminum Leg Aluminum Leg Titanium Leg > --- UTILITY ---------- Medium Storage Unit Sensor Array Signal Interpreter Improved Terrain Scan Processor > --- WEAPON ----------- Greatsword > --- INVENTORY -------- Light Nuclear Core Aluminum Leg Improved VTOL Module Improved VTOL Module Improved VTOL Module Improved VTOL Module Heavy Assault Rifle Shotgun Minigun Improved Grenade Launcher [Rating: 26] Favorites ----------- Power Ion Engine Engine Ion Engine Power Core Light Nuclear Core Propulsion Aluminum Leg Leg Aluminum Leg Utility Medium Storage Unit Device Sensor Array Storage Medium Storage Unit Processor Signal Interpreter Weapon Small Laser Energy Gun Small Laser Ballistic Gun Assault Rifle Slashing Weapon Greatsword Piercing Weapon Spear Build | -11 -10 -9 -8 ------- Run | Scr Mat Mat Mat Slots Evolved 4 | . . 2 2 Power . | . . . . Propulsion 2 | . . . 2 Utility 2 | . . 2 . Weapon . | . . . . Parts Attached 34 | 6 3 12 13 Power 4 | 1 . 2 1 Engine 3 | 1 . 1 1 Core 1 | . . 1 . Reactor . | . . . . Propulsion 13 | 2 1 4 6 Treads . | . . . . Leg 13 | 2 1 4 6 Wheel . | . . . . Hover . | . . . . Flight . | . . . . Utility 7 | 1 2 4 . Device 1 | . 1 . . Storage 2 | 1 1 . . Processor 4 | . . 4 . Hackware . | . . . . Protection . | . . . . Artifact . | . . . . Weapon 10 | 2 . 2 6 Energy Gun 1 | 1 . . . Energy Cannon . | . . . . Ballistic Gun 6 | 1 . 2 3 Ballistic Cannon . | . . . . Launcher . | . . . . Special Weapon . | . . . . Impact Weapon . | . . . . Slashing Weapon 2 | . . . 2 Piercing Weapon 1 | . . . 1 Special Melee Weapon . | . . . . Unidentified Prototypes 1 | . . . 1 Parts Lost 10 | . . 3 7 Power 2 | . . 1 1 Propulsion 4 | . . . 4 Utility 2 | . . 1 1 Weapon 2 | . . 1 1 Highest Loss Streak 6 | . . 2 6 To Critical Strikes . | . . . . Average Slot Usage (%) 92 | . 90 93 92 Engine 8 | . 14 8 7 Core 1 | . . 1 1 Leg 28 | . 28 22 33 Device 8 | . 5 11 8 Storage 10 | . 14 11 9 Processor 14 | . . 17 18 Energy Gun 6 | . 14 9 . Ballistic Gun 12 | . 14 12 13 Naked Turns . | . . . . Heaviest Build 25 | 13 19 22 25 Greatest Support 47 | 20 20 20 47 Greatest Overweight (x) 4 | 4 . 1 3 Average Overweight (x) . | . . . . Largest Inventory Capacity 10 | 8 10 10 10 Average Capacity 9 | 7 9 10 10 Most Carried 10 | 3 5 10 10 Average Carried 6 | . 2 5 8 Final Capacity 10 | 8 10 10 10 Final Carried 9 | 1 5 9 7 Class Distribution -------------------- 65% | Mutant 34% | Scavenger-Mutant Dominant Class ---------------- Mutant | -10/Materials Mutant | -9/Materials Scavenger-Mutant | -8/Materials Resources | -11 -10 -9 -8 ----------- Run | Scr Mat Mat Mat Matter Collected 705 | 263 34 210 198 Remotely . | . . . . Salvage Created 924 | . 139 439 346 Parts 67 | . 10 28 29 Haulers Intercepted 2 | . 1 . 1 Recyclers Shooed 2 | . . 1 1 Parts Field Recycled . | . . . . Retrieved Matter . | . . . . Parts Self-Destructed . | . . . . Prevented . | . . . . Kills | -11 -10 -9 -8 ------- Run | Scr Mat Mat Mat Combat Hostiles Destroyed 22 | . 2 8 12 Melee 2 | . . . 2 Guns 20 | . 2 8 10 Classes Destroyed 6 | . 2 3 1 Hauler 2 | . 1 . 1 Recycler 1 | . . 1 . Watcher 1 | . . 1 . Swarmer 8 | . . . 8 Grunt 11 | . 2 5 4 Sentry 3 | . . 3 . Best Kill Streak 4 | . 2 4 4 Combat Bots Only 4 | . 2 3 4 Max Kills in Single Turn 1 | . 1 1 1 Gunslinging . | . . . . Exploded . | . . . . Melee 1 | . . . 1 Uniques/NPCs Destroyed . | . . . . Combat | -11 -10 -9 -8 -------- Run | Scr Mat Mat Mat Damage Taken 2188 | . 147 553 1488 Core 761 | . 44 158 559 Absorbed by Shields . | . . . . Core Remaining (%) 80 | 100 82 60 . Volleys Fired 97 | 1 11 45 40 Largest 2 | 2 2 2 2 Hottest 63 | 60 60 63 48 Shots Fired 183 | 2 23 78 80 Gun 183 | 2 23 78 80 Cannon . | . . . . Launcher . | . . . . Special . | . . . . Kinetic 137 | 1 12 44 80 Thermal 46 | 1 11 34 . Explosive . | . . . . Electromagnetic . | . . . . Robot Hit Streak 22 | 1 7 22 8 Robot Miss Streak 7 | 1 3 5 7 Penetration Max . | . . . . Secondary Targets 2 | . 1 1 . Max Gunslinging Chain 1 | . 1 1 . Shots Hit Robots 133 | 1 15 58 59 Core Hits 49 | . 7 21 21 Critical Kills 1 | . . . 1 Critical Parts Destroyed . | . . . . Critical Strikes 3 | . . . 3 Destroy 1 | . . . 1 Sever 1 | . . . 1 Impale 1 | . . . 1 Melee Attacks 10 | . . . 10 Impact . | . . . . Slashing 9 | . . . 9 Piercing 1 | . . . 1 Sneak Attacks . | . . . . Combat Hostiles . | . . . . Follow-up Attacks . | . . . . Damage Inflicted 1945 | 11 185 651 1098 Guns 1582 | 11 185 651 735 Cannons . | . . . . Explosions . | . . . . Melee 363 | . . . 363 Ramming . | . . . . Kinetic 1232 | 11 95 391 735 Thermal 350 | . 90 260 . Explosive . | . . . . Electromagnetic . | . . . . Impact . | . . . . Slashing 340 | . . . 340 Piercing 23 | . . . 23 Highest Corruption 2 | . 2 . . Average Corruption 2 | . 2 . . Corruption Purged . | . . . . Corruption Blocked . | . . . . Effects 1 | . 1 . . Misfires 1 | . 1 . . Overload Shots . | . . . . Overflow Damage 55 | . . 36 19 Projectiles . | . . . . Explosions 36 | . . 36 . Melee 19 | . . . 19 Knockbacks . | . . . . Impact . | . . . . Kinetic . | . . . . Secondary . | . . . . Self-Inflicted Damage 194 | . . 194 . Shots 2 | . . 2 . Rammed . | . . . . Targets Rammed . | . . . . Kicked . | . . . . Crushed . | . . . . Highest Temperature 93 | . 93 24 15 Average Temperature 29 | . 57 6 8 Received Heat Transfer 648 | . 102 177 369 Siege Activations . | . . . . Robots Corrupted . | . . . . Combat Hostiles . | . . . . Parts Fried . | . . . . Impact Corruptions . | . . . . Robots Melted . | . . . . Combat Hostiles . | . . . . Parts Melted . | . . . . Heat Transferred 800 | . 200 600 . Parts Sabotaged . | . . . . Parts Stolen . | . . . . Parts Stripped . | . . . . Power Chain Reactions . | . . . . Missiles Intercepted . | . . . . Alert | -11 -10 -9 -8 ------- Run | Scr Mat Mat Mat Peak Influence 564 | . 57 382 564 Initial 76 | . . 24 76 Average 225 | . 40 159 375 Maximum Alert Level 2 | . . 1 2 Low Security (%) 53 | 100 100 67 18 Level 1 28 | . . 32 38 Level 2 18 | . . . 43 Level 3 . | . . . . Level 4 . | . . . . Level 5 . | . . . . High Security . | . . . . Max Security . | . . . . Squads Dispatched 5 | . . . 5 Investigation 2 | . . . 2 Extermination . | . . . . Reinforcement 3 | . . . 3 Assault . | . . . . Garrison . | . . . . Intercept . | . . . . Searches Triggered . | . . . . Construction Impeded . | . . . . Haulers Reinforced . | . . . . Active Scanning Responses . | . . . . Cargo Convoy Interrupts . | . . . . Stealth | -11 -10 -9 -8 --------- Run | Scr Mat Mat Mat Distress Signals 2 | . . 2 . Communications Jammed . | . . . . Distress Signals . | . . . . Times Spotted 47 | . 2 14 31 Peak Tracking Total 7 | . 2 4 7 Tactical Retreats 6 | . . 1 5 Traps | -11 -10 -9 -8 ------- Run | Scr Mat Mat Mat Traps Triggered 1 | . 1 . . Indirectly . | . . . . Trap Hack Attempts . | . . . . Triggered . | . . . . Disarmed . | . . . . Reprogrammed . | . . . . Reused . | . . . . Traps Extracted . | . . . . Installed . | . . . . Triggered . | . . . . Machines | -11 -10 -9 -8 ---------- Run | Scr Mat Mat Mat Machines Disabled 3 | . . 3 . Max in Single Turn 2 | . . 2 . Machines Sabotaged . | . . . . Garrisons Compromised . | . . . . Overloaded Fab Kills . | . . . . Hacking | -11 -10 -9 -8 --------- Run | Scr Mat Mat Mat Machines Accessed 3 | . 1 . 2 Terminals 3 | . 1 . 2 Fabricators . | . . . . Repair Stations . | . . . . Recycling Units . | . . . . Scanalyzers . | . . . . Garrison Access . | . . . . Total Hacks 9 | . 2 . 7 Successful 3 | . . . 3 Failed 6 | . 2 . 4 Catastrophic 2 | . 1 . 1 Database Lockouts . | . . . . Manual 2 | . 2 . . Terminals 9 | . 2 . 7 Fabricators . | . . . . Repair Stations . | . . . . Recycling Units . | . . . . Scanalyzers . | . . . . Garrison Access . | . . . . Terminal Hacks 3 | . . . 3 Terminal Index 1 | . . . 1 Recall Investigation 1 | . . . 1 Hauler Manifests 1 | . . . 1 Fabricator Hacks . | . . . . Repair Station Hacks . | . . . . Recycling Unit Hacks . | . . . . Scanalyzer . | . . . . Garrison Access Hacks . | . . . . Unauthorized Hacks . | . . . . Terminals . | . . . . Fabricators . | . . . . Repair Stations . | . . . . Recycling Units . | . . . . Scanalyzers . | . . . . Garrison Access . | . . . . Data Cores Recovered . | . . . . Used . | . . . . Hacking Detections 3 | . 1 . 2 Full Trace Events 2 | . . . 2 Feedback Events . | . . . . Feedback Blocked . | . . . . Robot Schematics Acquired . | . . . . Robots Built . | . . . . Authchips . | . . . . Time . | . . . . Total Robot Build Rating . | . . . . Part Schematics Acquired . | . . . . Parts Built . | . . . . Authchips . | . . . . Time . | . . . . Total Part Build Rating . | . . . . Parts Repaired . | . . . . Time . | . . . . Parts Recycled . | . . . . Recycled Matter . | . . . . Retrieved Matter . | . . . . Retrieved Components . | . . . . Parts Scanalyzed . | . . . . Part Schematics Acquired . | . . . . Parts Damaged . | . . . . Bothacking | -11 -10 -9 -8 ------------ Run | Scr Mat Mat Mat Used RIF Installer . | . . . . Robots Hacked . | . . . . Non-combat . | . . . . Combat . | . . . . Robot Hacks Applied . | . . . . Relay Couplers Released . | . . . . Fabnet Peak Effective % . | . . . . Robots Rewired . | . . . . Allies Hacked . | . . . . Hacks Repelled . | . . . . Allies | -11 -10 -9 -8 -------- Run | Scr Mat Mat Mat Total Allies . | . . . . Largest Group . | . . . . Highest-Rated Group . | . . . . Highest-Rated Ally . | . . . . Total Orders . | . . . . Ally Attacks . | . . . . Total Damage . | . . . . Kills . | . . . . Allies Corrupted . | . . . . Allies Melted . | . . . . Intel | -11 -10 -9 -8 ------- Run | Scr Mat Mat Mat Robot Analysis Total . | . . . . Derelict Logs Recovered . | . . . . Drone Launches . | . . . . Drone Recoveries . | . . . . Exploration | -11 -10 -9 -8 ------------- Run | Scr Mat Mat Mat Turns Passed 1261 | 49 215 454 543 Spaces Moved 681 | 31 140 209 301 Core 13 | 11 . . 2 Treads . | . . . . Legs 668 | 20 140 209 299 Wheels . | . . . . Hover . | . . . . Flight . | . . . . Fastest Speed 50 | 50 120 120 120 Average Speed 122 | 108 120 127 122 Slowest Speed 250 | 250 120 190 200 Overloaded Moves . | . . . . Propulsion Burnouts . | . . . . Robots Hopped . | . . . . Cave-ins Triggered . | . . . . Exploration Rate (%) 22 | 3 26 24 37 Regions Visited 3 Branch Regions . Pre-discovered Areas . | . . . . Known Exits Taken 1 | . . 1 . Unknown Exits Taken 2 | 1 1 . . Scrap Searched . | . . . . Spaces Dug . | . . . . Terrain Destroyed 33 | . . 33 . Melee . | . . . . Projectile . | . . . . AOE 33 | . . 33 . Terrain Rammed . | . . . . Walls Destroyed . | . . . . Machines Disabled . | . . . . Actions | -11 -10 -9 -8 --------- Run | Scr Mat Mat Mat Total 914 | 44 164 319 387 Wait 41 | . 4 34 3 Move 678 | 30 139 208 301 Hop . | . . . . Pick Up 35 | 7 6 14 8 Fast Attach 2 | . . 1 1 Attach 20 | 6 1 5 8 Detach 3 | . . . 3 Swap 12 | . 2 6 4 Drop 16 | . 1 6 9 Fire 97 | 1 11 45 40 Melee 10 | . . . 10 Ram . | . . . . Kick . | . . . . Crush . | . . . . Escape Stasis . | . . . . Rewire . | . . . . Trap . | . . . . Miscellaneous . | . . . . Route ------- -11/Scrapyard -10/Materials -9/Materials -8/Materials (discovered 1 exit: *Fac) History --------- Turn | Location | Event 6 | -11/Scrapyard | Discovered new exit (range 15) 50 | -11/Scrapyard | Entered Materials 229 | -10/Materials | Discovered new exit (range 16) 265 | -10/Materials | Entered another Materials area 265 | -9/Materials | Evolved 2 slots: Utility x2 318 | -9/Materials | Build established: Mutant 640 | -9/Materials | Discovered new exit (range 16) 717 | -9/Materials | Identified exit to Materials 719 | -9/Materials | Entered another Materials area 719 | -8/Materials | Evolved 2 slots: Propulsion x2 1234 | -8/Materials | Discovered new exit (range 3) 1237 | -8/Materials | Identified exit to Factory 1250 | -8/Materials | Core integrity fell below 50% 1258 | -8/Materials | Core integrity fell below 20% 1262 | -8/Materials | Destroyed by C-17 Slicer with Blade Saw Last Messages --------------- 01241_ ALERT: Hostile activity reported, dispatching reinforcements to area. 01245_ C-17 Slicer destroyed. 01246_ Greatsword destroyed. 01247_ Penetrated by Slug. 01247_ Sensor Array destroyed. 01248_ The unstable cave ceiling collapses. 01249_ Knocked back. 01250_ Acquired 5 matter. 01251_ Knocked back. 01251_ G-47 Trooper system corrupted by crushing effect. 01252_ Acquired 1 matter. 01252_ G-47 Trooper system terminally corrupted. 01254_ C-17 Slicer suffers critical hit (Impale). 01255_ Knocked back. 01256_ Acquired 2 matter. 01257_ Knocked back. 01259_ Acquired 7 matter. 01259_ Slug penetrates Wall. 01259_ Titanium Leg destroyed. 01259_ Knocked back. Map ----- +----------------------------------------------------+ | ???????? # " "*####+### ########### #?? | | ???????? + ??? ???## ##?????????# #?? | | ???????? # """ ??# ?????# #####??????# #?? | | ????????####/ """ ??????????# ==#??????# #?? | | ???????????? """ ??????????# ==#??????# #?# | | ?????????????? ???????????# [] //#??????# | | ??????????????###???????????#]%] * /#??????# | | ????????????????????????????#![= /#??????# | | ????????????????????????????# //#??????# | | ????????????????????????????# = #####??????# """ | | ????????????????????????????#==*#??????????# """ | | ????????????????????????????#%= ##########?# """ | | ???????????????????????#????# ! ## [ #?# | | ??????????????????????# ????# ## " #?# * | | ?????????????????????##"##??# ##" " #?# """ | | ????????????????????? ?? ##"" #?# """ | | ?????????????????????# ? ##""" #?# """ | | ?????????????????????# ## "" #?# | | ?????????????????????# #########""" #?# | | ?????????????????????# #???????#""" #?# ### | | ?????????????????????# #???????#""" #?# #?? | | ?????????????????????# #???????# " #?# #?? | | ?????????????????????# #?????### ### ##? | | ?????????????????????# % ####### ##/##### ] #? | | ?????????????????????# %# # #? | | ?????????????????????#% !@= k T #? | | ?????????????????????# =%#c o #? | | ?????????????????????# < " % ###### #? | | ?????????????????????# H" #????#######? | | ?????????????????????####" ###???????????? | | ????????????????????????## #?????????????? | | ?????????????????????????# #?????????????? | | ?????????????????????????###########?????????????? | | ?????????????????????????????????????????????????? | | ?????????????????????????????????????????????????? | | ?????????????????????????????????????????????????? | | | | | | | | | | | | | | | | | | | | | | | | | | | | | +----------------------------------------------------+ Best States ------------- Heat Dissipation 31 Energy Generation 14 Energy Capacity 280 Matter Stores 300 Matter Capacity 300 Sight Range 18 Robot Scan Range 14 Terrain Scan Density 110 Evasion (%) 55 Targeting Accuracy 5 Item Schematics ----------------- None Robot Schematics ------------------ None Fabricated ------------ Nothing Alien Tech Used ----------------- None Achievements -------------- None Challenges ------------ None Game ------ Seed HardenedBombardmentGun Manual? 0 Play Time 00:23:13 Cumulative 32.0 hours Start 2022.05.03 @ 21:07:40 End 2022.05.03 @ 21:30:59 Sessions 1 Manual Loads 0 Difficulty Rogue Special Mode None Game No. 71 Rogue 71 Adventurer 0 Explorer 0 Win Type - Total 0 Types 0/0/0/0/0/0/0/0/0 Lore% 24 Gallery% 23 Achievement% 21 Wizard Run 0 Options --------- ASCII 0 Keyboard 0 Movement Mouse Keybinds 0 Fullscreen 1 Font 12/Smallcaps Map View 83x54 Tactical HUD 1 Map Filters NONE Filters NONE Steam 1 RUN: 84d0da57-d4e3-4b3b-8ad8-fe96ff7b734d